[Event "Karel Janecek Open 2024"]
[Site "Prague"]
[Date "2024.03.06"]
[Round "8.16"]
[White "Simek, Petr"]
[Black "Neverov, Valeriy"]
[Result "1/2-1/2"]
[ECO "B41"]
[WhiteElo "2291"]
[BlackElo "2423"]
[Annotator "TA"]
[PlyCount "132"]
[EventDate "2024.02.22"]
[EventType "swiss"]
[EventCountry "CZE"]
[SourceTitle "playchess.com"]
[Source "ChessBase"]
[SourceQuality "1"]
[TimeControl "40/5400+30:1800+30"]

{[%evp 24,132,56,25,56,64,62,12,15,18,50,49,48,53,58,63,64,26,66,18,24,24,36,-29,-26,-46,-46,-65,-64,-66,-66,-74,-72,-72,-57,-70,-60,-74,-58,-52,-58,-73,-47,-66,0,-62,0,-28,-25,-21,-24,-26,-27,-27,-34,-31,-17,-16,0,0,0,-9,-8,-8,-8,-6,-3,-8,-8,-8,0,-8,-8,-10,-8,-54,-54,-45,-45,-45,-47,-56,-72,-63,-35,-65,-62,-60,-60,-56,-10,-10,0,-63,0,-10,-10,-10,-10,-10,-10,-10,0,-10,0,-10,-9,-12,-15,-8,0]} 1. e4 {[%emt 0:03:22]} c5 {[%emt 0:00:14]} 2. Nf3 {[%emt 0:00:09]} e6 {[%emt 0:00:50]} 3. d4 {[%emt 0:00:06]} cxd4 {[%emt 0:00:07]} 4. Nxd4 {[%emt 0:00:05]} a6 {[%emt 0:00:17]} 5. c4 {[%emt 0:00:16]} Nf6 {[%emt 0:00:39]} 6. Nc3 {[%emt 0:00:05]} Qc7 {[%emt 0:00:21]} 7. a3 {[%emt 0:02:57]} b6 {[%emt 0:00:36]} 8. Be3 {[%emt 0:01:12]} Bb7 {[%emt 0:00:56] B41: Sicilian: Kan Variation: 5 c4.} 9. Bd3 {[%emt 0:02:00]} Bc5 $146 {[%emt 0:14:49]} ({Predecessor:} 9... Nc6 10. Nxc6 Bxc6 11. O-O Bd6 12. f4 e5 13. f5 Bc5 14. Qe2 a5 15. Kh1 Bxe3 16. Qxe3 {½-½ Avila Pavas,S (2432)-Quesada Perez,L (2545) Mexico City Latinoamericano-A 1st 2021 (3)}) 10. b4 {[%emt 0:13:54]} Bxd4 {[%emt 0:00:46]} 11. Bxd4 {[%emt 0:00:05]} Nc6 {[%emt 0:00:10]} 12. Be3 {[%emt 0:13:02]} Ne5 {[%emt 0:01:23]} 13. f3 {[%emt 0:09:10]} b5 {[%emt 0:40:44]} 14. c5 {[%emt 0:01:11]} d5 {[%emt 0:00:21]} 15. exd5 {[%emt 0:13:23]} ({White should play} 15. Bxb5+ $1 $14 axb5 16. Nxb5) 15... Nxd5 $11 {[%emt 0:01:16]} 16. Nxd5 {[%emt 0:00:58]} Bxd5 {[%emt 0:05:11]} 17. Be2 $1 {[%emt 0:02:13]} Rd8 {[%emt 0:00:29]} 18. Qc2 {[%emt 0:01:11]} Nc4 {[%emt 0:02:31]} 19. Qc3 $1 {[%emt 0:02:26]} O-O {[%emt 0:03:39]} 20. O-O {[%emt 0:00:16]} f6 {[%emt 0:05:46]} 21. Rfd1 {[%emt 0:05:29]} (21. Bf2 $14) 21... a5 $11 {[%emt 0:04:20]} 22. Bxc4 {[%emt 0:07:49]} axb4 {[%emt 0:01:13]} (22... Bxc4 {with more complications.} 23. bxa5 Ra8 24. Bd2 Rfd8) 23. Qxb4 {[%emt 0:02:03]} (23. axb4 $14 Bxc4 24. Rd6) 23... bxc4 $11 {[%emt 0:00:29]} 24. Qc3 {[%emt 0:01:37]} Rb8 {[%emt 0:01:07]} 25. Rdb1 {[%emt 0:00:47]} Rb3 {[%emt 0:01:34]} 26. Rxb3 {[%emt 0:00:10]} cxb3 {[%emt 0:00:04]} 27. a4 {[%emt 0:00:36]} Ra8 {[%emt 0:05:48]} 28. a5 {[%emt 0:00:25]} Ra6 {[%emt 0:02:12]} 29. Bc1 {[%emt 0:01:15]} h5 {[%emt 0:01:39]} 30. Bb2 {[%emt 0:01:00]} h4 {[%emt 0:03:16]} 31. h3 {[%emt 0:00:04]} Rc6 {[%emt 0:00:41]} 32. Rc1 {[%emt 0:00:15]} Qf4 {[%emt 0:00:45]} 33. Ra1 {[%emt 0:06:51]} Qc7 {[%emt 0:01:02]} 34. Rc1 {[%emt 0:01:07]} Ra6 {[%emt 0:01:39]} 35. Ra1 {[%emt 0:00:14]} Qf4 {[%emt 0:00:29]} 36. Qd3 {[%emt 0:05:48]} Qc4 {[%emt 0:00:09]} 37. Qxc4 {[%emt 0:00:36]} Bxc4 {[%emt 0:00:04]} 38. Kf2 {[%emt 0:00:05]} Kf7 {[%emt 0:00:18]} 39. Ke3 {[%emt 0:00:15]} e5 {[%emt 0:00:44]} 40. Kd2 {[%emt 0:00:19]} Rc6 {[%emt 0:00:59]} 41. Ba3 {[%emt 0:33:38]} Ke6 {[%emt 0:30:20]} 42. Kc3 {[%emt 0:00:14]} Bd5 {[%emt 0:00:22]} 43. Kb4 {[%emt 0:00:00]} Rc8 {[%emt 0:00:00]} 44. a6 {[%emt 0:00:00]} Kd7 {[%emt 0:00:00]} 45. Kc3 {[%emt 0:00:00]} Ra8 {[%emt 0:00:00]} 46. Bc1 {[%emt 0:00:00]} Ra7 {[%emt 0:00:00]} 47. Be3 {[%emt 0:00:00]} Kc6 {[%emt 0:00:00]} 48. Ra4 {[%emt 0:00:00]} g5 {[%emt 0:00:00]} 49. Ra5 {[%emt 0:00:00]} (49. Bf2 $11) 49... b2 $15 {[%emt 0:00:00]} 50. Kxb2 {[%emt 0:00:00]} Bc4 {[%emt 0:00:00]} 51. Ra1 {[%emt 0:00:00]} Rxa6 {[%emt 0:00:00]} 52. Rb1 {[%emt 0:00:00]} Ra2+ {[%emt 0:00:00]} 53. Kc3 {[%emt 0:00:00]} Bb5 {[%emt 0:00:00]} 54. Rd1 {[%emt 0:00:00]} Ra3+ {[%emt 0:03:15]} ({Don't play} 54... Rxg2 55. Rd6+ Kc7 56. Rxf6 $11) 55. Kb4 {[%emt 0:00:00]} Rd3 $1 {[%emt 0:00:05]} (55... Rxe3 56. Rd6+ Kc7 57. Kxb5 $14) 56. Re1 $1 {[%emt 0:00:00]} Rd8 {[%emt 0:03:31]} (56... Ba6 $15) 57. Ra1 $11 {[%emt 0:00:00]} Rd3 {[%emt 0:00:16]} (57... Bd3 $11) 58. Re1 $1 $15 {[%emt 0:00:00]} Rd8 {[%emt 0:00:58]} ({Better is} 58... Ba6 $15) 59. Ra1 $11 {[%emt 0:00:00]} Be2 {[%emt 0:00:17]} 60. Re1 {[%emt 0:00:00]} Bd1 {[%emt 0:01:11]} 61. Kc4 {[%emt 0:04:20]} Rd7 {[%emt 0:00:12]} 62. Kc3 {[%emt 0:01:28]} Rd8 {[%emt 0:00:47]} 63. Kc4 {[%emt 0:00:06]} Rd7 {[%emt 0:00:33]} 64. Kc3 {[%emt 0:00:05]} Ba4 {[%emt 0:00:34]} 65. Ra1 {[%emt 0:00:18]} Bb5 {[%emt 0:00:20]} 66. Kb4 {[%emt 0:00:18]} Rd3 {[%emt 0:00:35]} 1/2-1/2

[Event "Karel Janecek Open 2024"]
[Site "Prague"]
[Date "2024.03.06"]
[Round "8.17"]
[White "Babula, Vlastimil"]
[Black "Belenkaya, Dina"]
[Result "0-1"]
[ECO "B12"]
[WhiteElo "2529"]
[BlackElo "2202"]
[Annotator "TA"]
[PlyCount "66"]
[EventDate "2024.02.22"]
[EventType "swiss"]
[EventCountry "CZE"]
[SourceTitle "playchess.com"]
[Source "ChessBase"]
[SourceQuality "1"]
[TimeControl "40/5400+30:1800+30"]

{[%evp 9,66,-20,-32,-76,-68,-60,-65,-48,-52,-97,-25,-37,32,-7,0,-33,-40,-79,-72,-157,-135,-160,-157,-143,-153,-163,-158,-158,-163,-168,-125,-156,-106,-106,-106,-154,-156,-317,-314,-543,-564,-883,-433,-597,-598,-605,-595,-745,-732,-702,-695,-2128,-1994,-29989,-29990,-29991,-29988,-29995,-29996]} 1. e4 {[%emt 0:00:03]} c6 {[%emt 0:09:48]} 2. d4 {[%emt 0:00:13]} d5 {[%emt 0:00:06]} 3. e5 {[%emt 0:00:12]} Bf5 {[%emt 0:00:06]} 4. h4 {[%emt 0:00:07]} h5 {[%emt 0:00:06]} 5. Bg5 {[%emt 0:00:07]} Qb6 {[%emt 0:00:24]} 6. Bd3 {[%emt 0:00:11]} Qxd4 {[%emt 0:00:33]} (6... Bxd3 $5 7. Qxd3 Qxb2 $17) 7. Nf3 {[%emt 0:00:13]} Qg4 {[%emt 0:00:08]} 8. Bxf5 {[%emt 0:00:09] Black is slightly better.} Qxf5 {[%emt 0:00:23]} 9. O-O {[%emt 0:00:06][%cal Oc2c4]} e6 {[%emt 0:00:49]} ({Black should try} 9... f6 $1 $17 {[%cal Rf6g5]} 10. Bd2 fxe5) 10. c4 $1 $11 {[%emt 0:00:07] Black must now prevent Qb3.} Bc5 {[%emt 0:13:39]} ({Black should play} 10... Na6 $15) 11. Nc3 {[%emt 0:11:17][%mdl 1024] aiming for Qb3. White has compensation.} Ne7 {[%emt 0:04:39]} 12. Qb3 {[%emt 0:11:35]} b6 {[%emt 0:01:21]} 13. Qa4 {[%emt 0:04:45] And now b4 would win.} f6 {[%emt 0:19:53][%cal Bf7f6,Bf6g5,Bg5h4][%mdl 32]} 14. b4 {[%emt 0:03:35]} (14. Be3 $142 Bxe3 (14... fxe5 15. Bxc5 bxc5 16. cxd5 $16) 15. fxe3) 14... fxg5 $17 {[%emt 0:01:56]} 15. bxc5 {[%emt 0:00:30]} Nd7 $1 {[%emt 0:05:07]} 16. cxb6 {[%emt 0:02:45]} Nxb6 {[%emt 0:01:16]} 17. Qb4 {[%emt 0:01:53]} gxh4 {[%emt 0:03:29] ...h3 would now be deadly.} ({Stronger than} 17... dxc4 18. Nxg5 Nbd5 19. Qxc4 $16) 18. cxd5 {[%emt 0:03:05]} exd5 {[%emt 0:07:39]} 19. Nd4 {[%emt 0:07:37]} Qg4 {[%emt 0:05:58]} 20. f3 {[%emt 0:01:10] [#]} Qf4 {[%emt 0:00:46]} (20... Qd7 $142 $1 {Strongly threatening ...h3.} 21. f4 O-O) 21. Nce2 {[%emt 0:08:53]} Qxe5 {[%emt 0:06:22] Hoping for ...0-0.} 22. Rae1 {[%emt 0:05:48] [#]} (22. Rfe1 $142 c5 23. Qxc5) 22... Nc4 $1 {[%emt 0:01:18] ...0-0 is the strong threat.} 23. Kh1 $2 {[%emt 0:17:20] This costs White the game.} (23. Qc5 $17 {keeps fighting.} Qd6 (23... O-O 24. Nc1 $16) 24. Qxd6 Nxd6 25. Nf4) 23... O-O $19 {[%emt 0:00:58]} 24. Qb7 $2 {[%emt 0:01:06]} (24. Qc5 {might work better.} Qd6 25. Qxd6 Nxd6 26. Rd1) 24... Ne3 {[%emt 0:02:32]} 25. Rf2 {[%emt 0:00:11]} N3f5 {[%emt 0:00:45]} (25... Rab8 $142 26. Qd7 Ng4 27. fxg4 Rxf2) 26. Nxc6 {[%emt 0:00:22]} Nxc6 {[%emt 0:00:10]} 27. Qxc6 {[%emt 0:00:02]} Rac8 {[%emt 0:00:22]} 28. Qa6 {[%emt 0:00:26]} Ng3+ {[%emt 0:06:24]} 29. Kg1 {[%emt 0:00:01]} Rc2 {[%emt 0:01:03] Threatens to win with ...Qe3.} 30. f4 {[%emt 0:00:46]} Qe3 {[%emt 0:00:39][%cal Of8f4] ( -> ...Rxf4!)} 31. Qa5 {[%emt 0:00:40]} Rxe2 {[%emt 0:00:55] Black mates.} 32. Qxd5+ {[%emt 0:00:10]} Kh8 {[%emt 0:00:18]} 33. Rexe2 {[%emt 0:00:46]} Qc1+ {[%emt 0:00:26] Weighted Error Value: White=0.98/Black=0.37.  Loses game:     	White=1     	---        Mistake:       	White=3     	Black=4      Inaccurate:     	White=6     	---        OK:         	White=5     	Black=6      Best:        	White=5     	Black=3      Strong:       	White=1     	Black=2} 0-1

[Event "Karel Janecek Open 2024"]
[Site "Prague"]
[Date "2024.03.06"]
[Round "8.18"]
[White "Botez, Alexandra"]
[Black "De Martino, Daniele"]
[Result "1-0"]
[ECO "E83"]
[WhiteElo "1977"]
[BlackElo "1855"]
[Annotator "NA RC"]
[PlyCount "61"]
[EventDate "2024.02.22"]
[EventType "swiss"]
[EventCountry "CZE"]
[SourceTitle "playchess.com"]
[Source "ChessBase"]
[SourceQuality "1"]
[TimeControl "40/5400+30:1800+30"]

1. d4 {[%emt 0:05:33]} Nf6 {[%emt 0:00:07]} 2. c4 {[%emt 0:00:13]} g6 {[%emt 0:00:08]} 3. f3 {[%emt 0:00:06]} Bg7 {[%emt 0:00:13]} 4. e4 {[%emt 0:00:06]} d6 {[%emt 0:00:12]} 5. Nc3 {[%emt 0:00:05]} O-O {[%emt 0:00:14]} 6. Be3 {[%emt 0:00:13]} Nc6 {[%emt 0:00:43]} 7. Nge2 {[%emt 0:00:21]} a6 {[%emt 0:00:55]} 8. Qd2 {[%emt 0:01:44]} Na5 {[%emt 0:00:50]} 9. Nc1 {[%emt 0:00:41]} Bd7 {[%emt 0:02:43]} 10. b4 {[%emt 0:00:30]} Nc6 {[%emt 0:02:53]} 11. Rb1 {[%emt 0:01:13]} e5 {[%emt 0:10:15]} 12. d5 {[%emt 0:00:12]} Ne7 {[%emt 0:01:16]} 13. c5 {[%emt 0:00:30]} Nh5 {[%emt 0:04:53]} 14. g4 {[%emt 0:04:00]} Nf4 {[%emt 0:03:35]} 15. N1e2 {[%emt 0:00:42]} g5 {[%emt 0:11:43]} 16. Nxf4 {[%emt 0:00:53]} exf4 {[%emt 0:03:00]} 17. Bd4 {[%emt 0:00:20]} Bxd4 {[%emt 0:02:04]} 18. Qxd4 {[%emt 0:00:09]} Ng6 {[%emt 0:01:40]} 19. Be2 {[%emt 0:00:21]} Ne5 {[%emt 0:09:34]} 20. Kf2 {[%emt 0:02:40]} Qf6 {[%emt 0:01:53]} 21. Qd2 {[%emt 0:00:17]} Qh6 {[%emt 0:14:48]} 22. h4 {[%emt 0:02:24]} gxh4 {[%emt 0:03:28]} 23. g5 {[%emt 0:00:26]} Qh5 {[%emt 0:02:37]} 24. Qxf4 {[%emt 0:00:37]} Ng6 {[%emt 0:00:54]} 25. Qf6 {[%emt 0:05:29]} h3 {[%emt 0:06:24]} 26. Rbg1 {[%emt 0:01:43]} h2 {[%emt 0:04:34]} 27. Rg2 {[%emt 0:01:59]} Qh4+ {[%emt 0:00:55]} 28. Ke3 {[%emt 0:00:33]} Bh3 {[%emt 0:05:02]} 29. Rgxh2 {[%emt 0:01:21]} Nf4 {[%emt 0:00:37]} 30. Qxf4 {[%emt 0:00:30]} Qxf4+ {[%emt 0:00:00]} 31. Kxf4 {[%emt 0:00:00]} 1-0

[Event "Karel Janecek Open 2024"]
[Site "Prague"]
[Date "2024.03.06"]
[Round "8.19"]
[White "Bravetti, Antonio"]
[Black "Botez, Andrea"]
[Result "1-0"]
[ECO "A24"]
[WhiteElo "2227"]
[BlackElo "1709"]
[Annotator "TA"]
[PlyCount "63"]
[EventDate "2024.02.22"]
[EventType "swiss"]
[EventCountry "CZE"]
[SourceTitle "playchess.com"]
[Source "ChessBase"]
[SourceQuality "1"]
[TimeControl "40/5400+30:1800+30"]

{[%evp 16,63,24,10,8,6,16,17,15,4,6,-26,44,38,51,38,78,72,89,89,97,94,96,79,72,71,72,70,191,176,195,185,260,258,256,251,216,199,269,249,367,346,29995,29996,29996,29997,29997,29994,29994,29995]} 1. g3 {[%emt 0:00:09]} Nf6 {[%emt 0:07:37]} 2. Bg2 {[%emt 0:00:05]} g6 {[%emt 0:00:07]} 3. d3 {[%emt 0:00:11]} Bg7 {[%emt 0:00:17]} 4. c4 {[%emt 0:00:16]} d6 {[%emt 0:00:21]} 5. Nc3 {[%emt 0:00:08]} O-O {[%emt 0:00:24]} 6. e3 {[%emt 0:00:10]} e5 {[%emt 0:05:32]} 7. Nge2 {[%emt 0:00:10]} c6 {[%emt 0:03:01]} 8. O-O {[%emt 0:00:14]} Be6 {[%emt 0:02:18]} 9. b3 {[%emt 0:04:15]} Qd7 {[%emt 0:10:03]} 10. Ba3 {[%emt 0:06:03]} Na6 {[%emt 0:04:41]} 11. d4 {[%emt 0:10:44]} Rfd8 {[%emt 0:06:18] Die Stellung ist ausgeglichen.} 12. Qd2 {[%emt 0:09:57]} Bh3 {[%emt 0:04:50]} 13. Rfd1 {[%emt 0:00:36] [#] Zielt auf dxe5 ab.} (13. Rad1 $5) 13... Ne8 {[%emt 0:20:29]} (13... Bxg2 $11 14. Kxg2 e4) 14. dxe5 $14 {[%emt 0:01:10]} Bxe5 {[%emt 0:03:44]} 15. Bh1 {[%emt 0:11:18]} h5 {[%emt 0:05:32]} 16. Nf4 {[%emt 0:00:43]} Bg4 {[%emt 0:05:59]} 17. f3 {[%emt 0:00:07]} Bf5 {[%emt 0:01:28]} 18. e4 {[%emt 0:11:02][%cal Be3e4,Be4e5][%mdl 32]} Be6 {[%emt 0:00:57]} 19. Nxe6 {[%emt 0:00:58]} Qxe6 {[%emt 0:00:18]} 20. f4 {[%emt 0:01:32]} Bf6 {[%emt 0:08:16]} 21. Qe3 {[%emt 0:02:26]} d5 {[%emt 0:05:15] Das kostet Schwarz die Partie.} 22. cxd5 $18 {[%emt 0:00:29]} cxd5 {[%emt 0:00:38] [#] Und ...d4 würde nun gewinnen.} 23. e5 {[%emt 0:00:07]} d4 {[%emt 0:02:26]} (23... Nec7 $142 24. Rac1 h4) 24. Rxd4 {[%emt 0:01:28]} Rxd4 {[%emt 0:00:43]} 25. Qxd4 {[%emt 0:00:14]} Bd8 {[%emt 0:00:41] Weiss muss nun ...Bb6 beachten.} 26. Nd5 {[%emt 0:01:55]} (26. Bxb7 $2 Bb6 $19) 26... Nec7 {[%emt 0:00:48]} (26... Rc8 {ist wohl besser.} 27. Rc1 (27. Qxa7 Rc2 $14) 27... h4 28. Qxa7 Rxc1+ 29. Bxc1 Qg4) 27. Qd3 {[%emt 0:03:03]} Nxd5 {[%emt 0:00:20]} (27... Ne8 $142 28. Bf3 Ng7) 28. Bxd5 {[%emt 0:00:09]} Qh3 {[%emt 0:00:47]} (28... Bb6+ $18 29. Kg2 Rd8) 29. Qxg6+ {[%emt 0:00:51] Weiß setzt Matt.} ({Nicht} 29. Bxb7 Bb6+ 30. Kh1 Rd8 $18) 29... Kh8 {[%emt 0:00:10]} 30. Qh6+ {[%emt 0:00:48]} Kg8 {[%emt 0:00:04]} 31. e6 {[%emt 0:04:51][%csl Gd5][%cal Re6f7]} Bb6+ {[%emt 0:00:55]} 32. Kh1 {[%emt 0:00:08] Gewichteter Fehlerwert: Weiß=0.06 (makellos) /Schwarz=0.64.  Fehler:       	---       	Schwarz=6     Ungenau:       	Weiß=1     	Schwarz=1     OK:         	Weiß=6     	Schwarz=3     Bester:       	Weiß=5     	---} 1-0

[Event "Karel Janecek Open 2024"]
[Site "Prague"]
[Date "2024.03.07"]
[Round "9.2"]
[White "Isik, Alparslan"]
[Black "Sethuraman, S.P."]
[Result "1/2-1/2"]
[ECO "A30"]
[WhiteElo "2452"]
[BlackElo "2594"]
[Annotator "TA"]
[PlyCount "28"]
[EventDate "2024.02.22"]
[EventType "swiss"]
[EventCountry "CZE"]
[SourceTitle "playchess.com"]
[Source "ChessBase"]
[SourceQuality "1"]
[TimeControl "40/5400+30:1800+30"]

{[%evp 17,28,8,0,1,10,5,11,8,31,18,26,0,0]} 1. Nf3 {[%emt 0:03:05]} Nf6 {[%emt 0:00:07][%cal Bg8f6,Bf6d5,Bd5b4,Bb4c6][%mdl 32]} 2. g3 {[%emt 0:00:10]} c5 {[%emt 0:00:07]} 3. Bg2 {[%emt 0:00:56]} Nc6 {[%emt 0:00:07]} 4. c4 {[%emt 0:00:35]} d5 {[%emt 0:01:22]} 5. cxd5 {[%emt 0:02:26]} Nxd5 {[%emt 0:00:06]} 6. d4 {[%emt 0:03:39]} cxd4 {[%emt 0:02:26]} 7. Nxd4 {[%emt 0:00:11]} Ndb4 {[%emt 0:00:04]} 8. Nxc6 {[%emt 0:00:23]} Qxd1+ {[%emt 0:00:06]} 9. Kxd1 {[%emt 0:00:06]} Nxc6 {[%emt 0:00:03]} 10. Nc3 {[%emt 0:02:47]} Bd7 {[%emt 0:00:07][%cal Bc8d7,Bd7f5,Bf5e4][%mdl 32]} 11. Be3 {[%emt 0:06:08]} Rc8 {[%emt 0:05:41]} 12. Rc1 {[%emt 0:02:47]} g6 {[%emt 0:02:08]} 13. Kc2 {[%emt 0:02:48]} Bf5+ {[%emt 0:07:29]} 14. Be4 {[%emt 0:01:04]} Bxe4+ {[%emt 0:03:31] Nicht viel passiert in dieser Partie.   Gewichteter Fehlerwert: Weiß=0.09 (makellos) /Schwarz=0.08 (makellos) .  Ungenau:       	Weiß=1     	---        OK:         	---       	Schwarz=1} 1/2-1/2

[Event "Karel Janecek Open 2024"]
[Site "Prague"]
[Date "2024.03.07"]
[Round "9.3"]
[White "Bharath Subramaniyam H"]
[Black "Xiang, Zeyu"]
[Result "1/2-1/2"]
[ECO "C49"]
[WhiteElo "2515"]
[BlackElo "2418"]
[Annotator "RC"]
[PlyCount "67"]
[EventDate "2024.02.22"]
[EventType "swiss"]
[EventCountry "CZE"]
[SourceTitle "playchess.com"]
[Source "ChessBase"]
[SourceQuality "1"]
[TimeControl "40/5400+30:1800+30"]

1. e4 {[%emt 0:00:17]} e5 {[%emt 0:03:59]} 2. Nf3 {[%emt 0:00:59]} Nc6 {[%emt 0:00:06]} 3. Nc3 {[%emt 0:00:05]} Nf6 {[%emt 0:00:10]} 4. Bb5 {[%emt 0:00:06]} Bb4 {[%emt 0:00:10]} 5. O-O {[%emt 0:00:24]} O-O {[%emt 0:00:07]} 6. Bxc6 {[%emt 0:00:38]} bxc6 {[%emt 0:00:09]} 7. Nxe5 {[%emt 0:06:34]} Re8 {[%emt 0:00:14]} 8. Nd3 {[%emt 0:16:52]} Bxc3 {[%emt 0:00:06]} 9. dxc3 {[%emt 0:00:22]} Nxe4 {[%emt 0:00:05]} 10. Re1 {[%emt 0:06:04]} d6 {[%emt 0:23:52]} 11. f3 {[%emt 0:08:04]} Nf6 {[%emt 0:00:25]} 12. Bg5 {[%emt 0:00:14]} Rxe1+ {[%emt 0:09:28]} 13. Qxe1 {[%emt 0:00:11]} Bf5 {[%emt 0:00:12]} 14. Nb4 {[%emt 0:08:53]} Qd7 {[%emt 0:03:47]} 15. Bxf6 {[%emt 0:04:10]} gxf6 {[%emt 0:00:10]} 16. Qg3+ {[%emt 0:05:22]} Bg6 {[%emt 0:00:11]} 17. h4 {[%emt 0:06:17]} h5 {[%emt 0:00:54]} 18. Nd3 {[%emt 0:11:43]} Re8 {[%emt 0:01:45]} 19. Re1 {[%emt 0:03:37]} Rxe1+ {[%emt 0:04:11]} 20. Qxe1 {[%emt 0:00:01]} Kf8 {[%emt 0:15:16]} 21. Nf4 {[%emt 0:02:12]} Qf5 {[%emt 0:02:20]} 22. Qd2 {[%emt 0:00:47]} Kg7 {[%emt 0:00:38]} 23. Kh2 {[%emt 0:03:25]} a5 {[%emt 0:07:18]} 24. a4 {[%emt 0:05:51]} c5 {[%emt 0:11:53]} 25. c4 {[%emt 0:02:03]} Qe5 {[%emt 0:05:07]} 26. Kg3 {[%emt 0:05:43]} Qxb2 {[%emt 0:01:06]} 27. Qxa5 {[%emt 0:00:07]} Qxc2 {[%emt 0:01:59]} 28. Qxc7 {[%emt 0:01:00]} Qxa4 {[%emt 0:04:41]} 29. Ne6+ {[%emt 0:00:32]} Kh6 {[%emt 0:00:52]} 30. Qd8 {[%emt 0:01:07]} fxe6 {[%emt 0:00:21]} 31. Qh8+ {[%emt 0:00:07]} Bh7 {[%emt 0:00:10]} 32. Qxf6+ {[%emt 0:00:08]} Bg6 {[%emt 0:00:04]} 33. Qh8+ {[%emt 0:00:25]} Bh7 {[%emt 0:00:05]} 34. Qf6+ {[%emt 0:00:43]} 1/2-1/2

[Event "Karel Janecek Open 2024"]
[Site "Prague"]
[Date "2024.03.07"]
[Round "9.4"]
[White "Neuman, Petr"]
[Black "Barbosa, Evandro Amorim"]
[Result "1/2-1/2"]
[ECO "E67"]
[WhiteElo "2398"]
[BlackElo "2491"]
[Annotator "TA"]
[PlyCount "52"]
[EventDate "2024.02.22"]
[EventType "swiss"]
[EventCountry "CZE"]
[SourceTitle "playchess.com"]
[Source "ChessBase"]
[SourceQuality "1"]
[TimeControl "40/5400+30:1800+30"]

{[%evp 19,52,0,2,-2,-15,-14,-24,-22,0,0,0,0,0,0,0,0,0,0,9,21,75,68,79,5,4,5,4,0,0,0,0,0,1,6,2]} 1. d4 {[%emt 0:00:04]} Nf6 {[%emt 0:02:42]} 2. c4 {[%emt 0:00:07]} g6 {[%emt 0:00:19]} 3. Nf3 {[%emt 0:00:15]} Bg7 {[%emt 0:00:19]} 4. g3 {[%emt 0:00:12]} O-O {[%emt 0:00:28]} 5. Bg2 {[%emt 0:00:06]} d6 {[%emt 0:00:27]} 6. O-O {[%emt 0:00:13]} Nbd7 {[%emt 0:00:47]} 7. Nc3 {[%emt 0:00:14]} e5 {[%emt 0:00:18]} 8. e3 {[%emt 0:00:07]} Re8 {[%emt 0:04:03]} 9. a4 {[%emt 0:01:55]} a5 {[%emt 0:10:08]} 10. b3 {[%emt 0:00:49]} c6 {[%emt 0:01:01]} 11. Ba3 {[%emt 0:06:24]} exd4 {[%emt 0:07:27]} 12. exd4 {[%emt 0:00:26]} Nb6 {[%emt 0:01:28]} 13. Re1 {[%emt 0:26:02] Black has an edge.} Rxe1+ {[%emt 0:01:19]} 14. Qxe1 {[%emt 0:00:07]} Bf5 {[%emt 0:00:53]} 15. d5 {[%emt 0:14:29]} cxd5 {[%emt 0:06:29] [#] Strongly threatening ...Ne4.} 16. Nd4 {[%emt 0:02:10]} dxc4 {[%emt 0:04:51]} 17. Nxf5 {[%emt 0:10:57]} gxf5 {[%emt 0:00:22]} 18. Rb1 {[%emt 0:00:44]} d5 {[%emt 0:05:22]} 19. bxc4 {[%emt 0:02:07]} Ne4 {[%emt 0:06:34]} (19... dxc4 $11 {remains equal.} 20. Bc5 (20. Bxb7 Rb8 $11) 20... Nfd7) 20. Nxd5 $16 {[%emt 0:03:52]} Nxd5 {[%emt 0:00:30] [#]} 21. cxd5 {[%emt 0:00:04]} ({Better is} 21. Rd1 $1 $16) 21... Qxd5 $11 {[%emt 0:00:23] The position is equal.} 22. Rb5 {[%emt 0:02:22]} Qd3 {[%emt 0:09:41]} 23. Bb2 {[%emt 0:03:44]} (23. Rxa5 $2 Rxa5 24. Qxa5 Qxa3 $19) 23... Bxb2 {[%emt 0:05:41]} 24. Rxb2 {[%emt 0:00:17]} Qd4 {[%emt 0:03:44]} 25. Rb5 {[%emt 0:04:02]} Rd8 {[%emt 0:13:19]} 26. Bxe4 {[%emt 0:01:56]} (26. Qxa5 {is a self mate.} Qxf2+ 27. Kh1 Rd1+) (26. Rxf5 $2 {is the wrong capture.} Qd1 27. Qf1 Qxa4 $17) 26... fxe4 {[%emt 0:05:12] Weighted Error Value: White=0.06 (flawless) /Black=0.09 (flawless) .  Mistake:       	White=1     	Black=1      OK:         	White=8     	Black=7      Best:        	White=1     	---} 1/2-1/2